[Event "*** SCC Grand Prix: Titled Tuesday Blitz"]
[Site "Chess.com"]
[Date "2020.10.06"]
[Round "7"]
[White "vladimirdamjanovic"]
[Black "Inga83"]
[Result "0-1"]
[WhiteElo "2539"]
[BlackElo "2430"]
[TimeControl "180+1"]
[EndTime "11:19:07 PDT"]
[Termination "Inga83 won on time"]

1. e4 {[%clk 0:03:00.9]} 1... c6 {[%clk 0:02:59.7]} 2. d4 {[%clk 0:03:00.4]}
2... d5 {[%clk 0:02:59.8]} 3. e5 {[%clk 0:03:00.8]} 3... Bf5 {[%clk 0:02:59.5]}
4. c4 {[%clk 0:03:01.2]} 4... e6 {[%clk 0:02:59.3]} 5. Nc3 {[%clk 0:03:01.2]}
5... dxc4 {[%clk 0:02:58.3]} 6. Bxc4 {[%clk 0:03:00.4]} 6... Nd7 {[%clk
0:02:58.3]} 7. Nge2 {[%clk 0:03:00.7]} 7... Nb6 {[%clk 0:02:58.1]} 8. Bb3 {[%clk
0:03:00.9]} 8... Ne7 {[%clk 0:02:57.3]} 9. O-O {[%clk 0:03:01]} 9... Ned5 {[%clk
0:02:56.8]} 10. Ng3 {[%clk 0:03:00.9]} 10... g6 {[%clk 0:02:54.7]} 11. Nce4
{[%clk 0:02:56.5]} 11... Bxe4 {[%clk 0:02:53.9]} 12. Nxe4 {[%clk 0:02:56.3]}
12... Be7 {[%clk 0:02:54.1]} 13. Bh6 {[%clk 0:02:55.4]} 13... Rg8 {[%clk
0:02:45.6]} 14. h4 {[%clk 0:02:50.4]} 14... a5 {[%clk 0:02:30.7]} 15. Bg5 {[%clk
0:02:48.1]} 15... a4 {[%clk 0:02:20.4]} 16. Nd6+ {[%clk 0:02:44.3]} 16... Kd7
{[%clk 0:02:20.4]} 17. Bxd5 {[%clk 0:02:41.5]} 17... Bxg5 {[%clk 0:02:12.5]} 18.
Nxb7 {[%clk 0:02:30.3]} 18... Qc7 {[%clk 0:02:05.5]} 19. Nc5+ {[%clk 0:02:28.5]}
19... Ke7 {[%clk 0:02:04.5]} 20. Bxe6 {[%clk 0:02:26.8]} 20... Bxh4 {[%clk
0:02:00.9]} 21. Qg4 {[%clk 0:02:25.7]} 21... g5 {[%clk 0:01:55.4]} 22. f4 {[%clk
0:01:53.2]} 22... Raf8 {[%clk 0:01:19.5]} 23. Bxf7 {[%clk 0:01:36.2]} 23... Rxf7
{[%clk 0:01:17.3]} 24. Qe6+ {[%clk 0:01:33.1]} 24... Kd8 {[%clk 0:01:14.8]} 25.
fxg5 {[%clk 0:01:28.9]} 25... Rgf8 {[%clk 0:01:11.7]} 26. Rxf7 {[%clk
0:01:03.5]} 26... Qxf7 {[%clk 0:01:11.3]} 27. Qd6+ {[%clk 0:00:57.1]} 27... Nd7
{[%clk 0:01:10.6]} 28. Ne6+ {[%clk 0:00:49.6]} 28... Ke8 {[%clk 0:01:10.6]} 29.
Nxf8 {[%clk 0:00:42]} 29... Bf2+ {[%clk 0:01:07.3]} 30. Kf1 {[%clk 0:00:38.4]}
30... Bxd4+ {[%clk 0:01:04.3]} 31. Ke2 {[%clk 0:00:38.6]} 31... Qf2+ {[%clk
0:01:00.9]} 32. Kd1 {[%clk 0:00:34]} 32... Nxf8 {[%clk 0:00:54.9]} 33. Qxc6+
{[%clk 0:00:30.1]} 33... Nd7 {[%clk 0:00:51.3]} 34. e6 {[%clk 0:00:25.1]} 34...
Qf1+ {[%clk 0:00:41.4]} 35. Kc2 {[%clk 0:00:23.1]} 35... Qe2+ {[%clk 0:00:38.5]}
36. Kc1 {[%clk 0:00:18.6]} 36... Be3+ {[%clk 0:00:37.2]} 0-1

[Event "*** SCC Grand Prix: Titled Tuesday Blitz"]
[Site "Chess.com"]
[Date "2020.10.06"]
[Round "7"]
[White "BikingBrian"]
[Black "ClydeHillKid"]
[Result "0-1"]
[WhiteElo "2199"]
[BlackElo "2324"]
[TimeControl "180+1"]
[EndTime "11:19:10 PDT"]
[Termination "ClydeHillKid won on time"]

1. d4 {[%clk 0:03:00.9]} 1... d5 {[%clk 0:02:59.6]} 2. Bf4 {[%clk 0:02:59.2]}
2... Nf6 {[%clk 0:02:59.1]} 3. e3 {[%clk 0:02:59.2]} 3... Bf5 {[%clk 0:02:58.6]}
4. c4 {[%clk 0:02:58.2]} 4... e6 {[%clk 0:02:57]} 5. Nc3 {[%clk 0:02:58.5]} 5...
Nbd7 {[%clk 0:02:53.5]} 6. Qb3 {[%clk 0:02:57.3]} 6... dxc4 {[%clk 0:02:53.1]}
7. Bxc4 {[%clk 0:02:54.1]} 7... Nb6 {[%clk 0:02:52.6]} 8. Be2 {[%clk 0:02:46.8]}
8... Bd6 {[%clk 0:02:51.6]} 9. Bg5 {[%clk 0:02:40.4]} 9... h6 {[%clk 0:02:40.7]}
10. Bh4 {[%clk 0:02:40]} 10... g5 {[%clk 0:02:35.9]} 11. Bg3 {[%clk 0:02:39.6]}
11... Ne4 {[%clk 0:02:30.4]} 12. Nf3 {[%clk 0:02:29.1]} 12... O-O {[%clk
0:02:25.4]} 13. Nxe4 {[%clk 0:01:54.6]} 13... Bxe4 {[%clk 0:02:26.3]} 14. Bxd6
{[%clk 0:01:54.1]} 14... cxd6 {[%clk 0:02:24.7]} 15. O-O {[%clk 0:01:52]} 15...
Rc8 {[%clk 0:02:21.6]} 16. Rac1 {[%clk 0:01:50.4]} 16... Qe7 {[%clk 0:02:19]}
17. Nd2 {[%clk 0:01:48]} 17... Bd5 {[%clk 0:02:18.3]} 18. Qa3 {[%clk 0:01:43]}
18... a6 {[%clk 0:02:16.4]} 19. e4 {[%clk 0:01:37.5]} 19... Bc6 {[%clk 0:02:14]}
20. Qh3 {[%clk 0:01:31]} 20... e5 {[%clk 0:02:09.8]} 21. d5 {[%clk 0:01:25.8]}
21... Bd7 {[%clk 0:02:09.4]} 22. Qxh6 {[%clk 0:01:25.9]} 22... Rxc1 {[%clk
0:01:58.7]} 23. Rxc1 {[%clk 0:01:25.5]} 23... Rc8 {[%clk 0:01:59.2]} 24. Rxc8+
{[%clk 0:01:24.7]} 24... Nxc8 {[%clk 0:02:00.1]} 25. Nf3 {[%clk 0:01:19.1]}
25... f6 {[%clk 0:01:59]} 26. Qg6+ {[%clk 0:01:02.8]} 26... Qg7 {[%clk
0:01:57.3]} 27. Qxg7+ {[%clk 0:01:01.8]} 27... Kxg7 {[%clk 0:01:58.2]} 28. Nd2
{[%clk 0:00:56.8]} 28... b5 {[%clk 0:01:57.3]} 29. g3 {[%clk 0:00:55.9]} 29...
Nb6 {[%clk 0:01:56.6]} 30. b3 {[%clk 0:00:54.7]} 30... Kg6 {[%clk 0:01:49.5]}
31. h4 {[%clk 0:00:53.7]} 31... gxh4 {[%clk 0:01:43.8]} 32. gxh4 {[%clk
0:00:53.6]} 32... f5 {[%clk 0:01:44.5]} 33. Bf3 {[%clk 0:00:38.1]} 33... f4
{[%clk 0:01:38.3]} 34. Nf1 {[%clk 0:00:29.6]} 34... Kh6 {[%clk 0:01:32.8]} 35.
Nh2 {[%clk 0:00:26.7]} 35... Bh3 {[%clk 0:01:29.3]} 36. Ng4+ {[%clk 0:00:20.3]}
36... Bxg4 {[%clk 0:01:28.7]} 37. Bxg4 {[%clk 0:00:20.2]} 37... b4 {[%clk
0:01:29.6]} 38. Kf1 {[%clk 0:00:17.2]} 38... a5 {[%clk 0:01:28.6]} 39. Ke2
{[%clk 0:00:17.4]} 39... Kg6 {[%clk 0:01:11.6]} 40. Kd3 {[%clk 0:00:17.1]} 40...
Kh6 {[%clk 0:01:10.1]} 41. Ke2 {[%clk 0:00:16.3]} 41... Kg6 {[%clk 0:01:09.8]}
42. Kf3 {[%clk 0:00:16]} 42... Kh6 {[%clk 0:01:08]} 43. Kg2 {[%clk 0:00:14.6]}
43... Kg6 {[%clk 0:01:08.1]} 44. Kh3 {[%clk 0:00:14.9]} 44... Kh6 {[%clk
0:01:04]} 45. Be6 {[%clk 0:00:15]} 45... Kg6 {[%clk 0:00:57.2]} 46. Kg4 {[%clk
0:00:13.8]} 46... Na8 {[%clk 0:00:52.7]} 47. h5+ {[%clk 0:00:07.7]} 47... Kf6
{[%clk 0:00:50.2]} 48. Bf5 {[%clk 0:00:03]} 48... Nc7 {[%clk 0:00:50]} 49. h6
{[%clk 0:00:03.4]} 49... Nb5 {[%clk 0:00:48.6]} 0-1

[Event "*** SCC Grand Prix: Titled Tuesday Blitz"]
[Site "Chess.com"]
[Date "2020.10.06"]
[Round "7"]
[White "ailime26"]
[Black "nitpicker"]
[Result "0-1"]
[WhiteElo "1850"]
[BlackElo "2240"]
[TimeControl "180+1"]
[EndTime "11:19:10 PDT"]
[Termination "nitpicker won by resignation"]

1. e4 {[%clk 0:03:00.9]} 1... d5 {[%clk 0:02:59.8]} 2. exd5 {[%clk 0:02:55.7]}
2... Qxd5 {[%clk 0:02:59.7]} 3. Nc3 {[%clk 0:02:49.8]} 3... Qd8 {[%clk
0:02:59.4]} 4. Nf3 {[%clk 0:02:49.9]} 4... Nf6 {[%clk 0:02:59.4]} 5. d4 {[%clk
0:02:49.8]} 5... c6 {[%clk 0:02:59.5]} 6. Be3 {[%clk 0:02:49.3]} 6... Bf5 {[%clk
0:02:59]} 7. Qd2 {[%clk 0:02:49]} 7... h6 {[%clk 0:02:58]} 8. O-O-O {[%clk
0:02:48.5]} 8... e6 {[%clk 0:02:58.3]} 9. h3 {[%clk 0:02:36.5]} 9... Bb4 {[%clk
0:02:57.8]} 10. g4 {[%clk 0:02:35.4]} 10... Be4 {[%clk 0:02:45.2]} 11. Bg2
{[%clk 0:02:30.4]} 11... Qa5 {[%clk 0:02:45]} 12. Kb1 {[%clk 0:02:25]} 12... Bd5
{[%clk 0:02:39.6]} 13. a3 {[%clk 0:02:16.7]} 13... Ne4 {[%clk 0:02:25.3]} 14.
Nxe4 {[%clk 0:02:05.1]} 14... Bxd2 {[%clk 0:02:24.8]} 15. Nexd2 {[%clk
0:02:03.9]} 15... b5 {[%clk 0:01:49.2]} 16. Rhg1 {[%clk 0:02:00.6]} 16... Nd7
{[%clk 0:01:46.1]} 17. Ne5 {[%clk 0:01:51.6]} 17... Nxe5 {[%clk 0:01:35.5]} 18.
dxe5 {[%clk 0:01:50.9]} 18... Bxg2 {[%clk 0:01:35.3]} 19. Rxg2 {[%clk
0:01:50.2]} 19... Rd8 {[%clk 0:01:33.3]} 20. Rgg1 {[%clk 0:01:49.2]} 20... O-O
{[%clk 0:01:31]} 21. Ne4 {[%clk 0:01:46.5]} 21... Rd5 {[%clk 0:01:25.9]} 22. Bc5
{[%clk 0:01:39.3]} 22... Rfd8 {[%clk 0:01:20.7]} 23. Bd6 {[%clk 0:01:39.1]}
23... Qb6 {[%clk 0:01:09.8]} 24. Ka2 {[%clk 0:01:22.6]} 24... c5 {[%clk
0:01:04.9]} 25. Nxc5 {[%clk 0:01:15.6]} 25... R8xd6 {[%clk 0:00:34]} 26. exd6
{[%clk 0:01:08.2]} 26... Qxd6 {[%clk 0:00:34]} 27. Ne4 {[%clk 0:01:05.5]} 27...
Qe5 {[%clk 0:00:31.9]} 28. Nc3 {[%clk 0:01:02.3]} 28... Rxd1 {[%clk 0:00:27.4]}
29. Rxd1 {[%clk 0:01:01.2]} 29... a5 {[%clk 0:00:25.1]} 30. Rd3 {[%clk
0:00:55.9]} 30... Qc5 {[%clk 0:00:22.5]} 31. f4 {[%clk 0:00:51.7]} 31... b4
{[%clk 0:00:22.7]} 32. axb4 {[%clk 0:00:48]} 32... axb4 {[%clk 0:00:22.7]} 33.
Rd8+ {[%clk 0:00:35.5]} 33... Kh7 {[%clk 0:00:22.1]} 34. Ne4 {[%clk 0:00:31.2]}
34... Qc4+ {[%clk 0:00:20.6]} 35. Kb1 {[%clk 0:00:26.7]} 35... Qxe4 {[%clk
0:00:20.6]} 36. f5 {[%clk 0:00:27.1]} 36... exf5 {[%clk 0:00:19.9]} 37. gxf5
{[%clk 0:00:27.1]} 37... Qxf5 {[%clk 0:00:20]} 0-1

[Event "*** SCC Grand Prix: Titled Tuesday Blitz"]
[Site "Chess.com"]
[Date "2020.10.06"]
[Round "7"]
[White "chessdjw"]
[Black "GianmarcoVaR"]
[Result "1-0"]
[WhiteElo "2644"]
[BlackElo "2471"]
[TimeControl "180+1"]
[EndTime "11:19:11 PDT"]
[Termination "chessdjw won on time"]

1. c4 {[%clk 0:03:00.9]} 1... Nf6 {[%clk 0:02:56.3]} 2. Nc3 {[%clk 0:03:00.4]}
2... e5 {[%clk 0:02:55]} 3. Nf3 {[%clk 0:02:59]} 3... Nc6 {[%clk 0:02:54.3]} 4.
a3 {[%clk 0:02:54.2]} 4... d5 {[%clk 0:02:46.3]} 5. cxd5 {[%clk 0:02:53.7]} 5...
Nxd5 {[%clk 0:02:45.9]} 6. Qc2 {[%clk 0:02:54.2]} 6... Be6 {[%clk 0:02:31.6]} 7.
e3 {[%clk 0:02:45.2]} 7... Nxc3 {[%clk 0:01:53.1]} 8. bxc3 {[%clk 0:02:28.5]}
8... Bd6 {[%clk 0:01:49.5]} 9. d4 {[%clk 0:02:27.2]} 9... O-O {[%clk 0:01:47.5]}
10. Be2 {[%clk 0:02:10.7]} 10... f5 {[%clk 0:01:41.4]} 11. Bb2 {[%clk 0:02:09]}
11... e4 {[%clk 0:01:29.7]} 12. Nd2 {[%clk 0:02:07.3]} 12... Qg5 {[%clk
0:01:25]} 13. g3 {[%clk 0:01:46.9]} 13... Ne7 {[%clk 0:01:04.5]} 14. c4 {[%clk
0:01:46.5]} 14... c6 {[%clk 0:01:01.3]} 15. h4 {[%clk 0:01:42.4]} 15... Qg6
{[%clk 0:00:59.2]} 16. h5 {[%clk 0:01:37.7]} 16... Qf7 {[%clk 0:00:58.1]} 17. h6
{[%clk 0:01:37]} 17... Ng6 {[%clk 0:00:17.2]} 18. hxg7 {[%clk 0:01:32.8]} 18...
Rfe8 {[%clk 0:00:13.9]} 19. O-O-O {[%clk 0:01:15.2]} 19... b5 {[%clk 0:00:06.5]}
20. c5 {[%clk 0:00:54.7]} 20... Bc7 {[%clk 0:00:02.8]} 21. Rh6 {[%clk 0:00:55]}
21... Bd5 {[%clk 0:00:01.9]} 22. Rdh1 {[%clk 0:00:55.4]} 22... Qxg7 {[%clk
0:00:02]} 23. Rxh7 {[%clk 0:00:42.3]} 23... Qxh7 {[%clk 0:00:01.9]} 24. Rxh7
{[%clk 0:00:43.2]} 24... Kxh7 {[%clk 0:00:02.8]} 25. g4 {[%clk 0:00:43.7]} 25...
f4 {[%clk 0:00:02.1]} 26. g5 {[%clk 0:00:34.2]} 26... fxe3 {[%clk 0:00:01.8]}
27. fxe3 {[%clk 0:00:34.1]} 27... Kg7 {[%clk 0:00:02]} 28. Bg4 {[%clk 0:00:33]}
28... Nh4 {[%clk 0:00:02]} 29. Nb1 {[%clk 0:00:27.5]} 29... Rh8 {[%clk
0:00:01.3]} 30. Nc3 {[%clk 0:00:27.4]} 30... Ng6 {[%clk 0:00:01.2]} 31. Nxe4
{[%clk 0:00:19.4]} 31... Rh1+ {[%clk 0:00:01.8]} 32. Bd1 {[%clk 0:00:19.8]} 1-0

[Event "*** SCC Grand Prix: Titled Tuesday Blitz"]
[Site "Chess.com"]
[Date "2020.10.06"]
[Round "7"]
[White "AndreyNeves"]
[Black "davigator"]
[Result "1-0"]
[WhiteElo "2238"]
[BlackElo "2343"]
[TimeControl "180+1"]
[EndTime "11:19:16 PDT"]
[Termination "AndreyNeves won by checkmate"]

1. d4 {[%clk 0:03:00.9]} 1... Nf6 {[%clk 0:02:55.3]} 2. c4 {[%clk 0:03:01.8]}
2... e6 {[%clk 0:02:55]} 3. g3 {[%clk 0:03:01.6]} 3... Bb4+ {[%clk 0:02:55.1]}
4. Bd2 {[%clk 0:02:59.8]} 4... a5 {[%clk 0:02:55.4]} 5. Bg2 {[%clk 0:02:58.1]}
5... O-O {[%clk 0:02:55.2]} 6. Nf3 {[%clk 0:02:57.8]} 6... b6 {[%clk 0:02:55.1]}
7. O-O {[%clk 0:02:57.4]} 7... c6 {[%clk 0:02:54.6]} 8. Nc3 {[%clk 0:02:56.5]}
8... Ba6 {[%clk 0:02:53.3]} 9. b3 {[%clk 0:02:52.1]} 9... d5 {[%clk 0:02:53.1]}
10. Ne5 {[%clk 0:02:49.3]} 10... Nfd7 {[%clk 0:02:50]} 11. Nxd7 {[%clk
0:02:39.1]} 11... Nxd7 {[%clk 0:02:49.3]} 12. a3 {[%clk 0:02:38.6]} 12... Be7
{[%clk 0:02:46.1]} 13. cxd5 {[%clk 0:02:14.8]} 13... cxd5 {[%clk 0:02:47]} 14.
a4 {[%clk 0:02:07.1]} 14... Nf6 {[%clk 0:02:41.1]} 15. Nb5 {[%clk 0:01:50.8]}
15... Bxb5 {[%clk 0:02:39.2]} 16. axb5 {[%clk 0:01:51.7]} 16... Qd7 {[%clk
0:02:38.8]} 17. Bg5 {[%clk 0:01:37.4]} 17... Qxb5 {[%clk 0:02:37.2]} 18. Bxf6
{[%clk 0:01:37.4]} 18... Bxf6 {[%clk 0:02:36.8]} 19. e3 {[%clk 0:01:38.1]} 19...
Rac8 {[%clk 0:02:36.2]} 20. h4 {[%clk 0:01:31.1]} 20... Rc7 {[%clk 0:02:35.4]}
21. h5 {[%clk 0:01:28.6]} 21... h6 {[%clk 0:02:35.1]} 22. e4 {[%clk 0:01:15]}
22... dxe4 {[%clk 0:02:33.2]} 23. Bxe4 {[%clk 0:01:14.8]} 23... Rd8 {[%clk
0:02:32.7]} 24. Ra4 {[%clk 0:01:03.3]} 24... Rcd7 {[%clk 0:02:30.5]} 25. Bb1
{[%clk 0:00:55]} 25... Rxd4 {[%clk 0:02:29.1]} 26. Rxd4 {[%clk 0:00:48.9]} 26...
Bxd4 {[%clk 0:02:28.2]} 27. Qc2 {[%clk 0:00:48.9]} 27... Kf8 {[%clk 0:02:28]}
28. Rd1 {[%clk 0:00:41.8]} 28... Qe5 {[%clk 0:02:25.7]} 29. Kg2 {[%clk
0:00:36.3]} 29... f5 {[%clk 0:02:25.4]} 30. Rd2 {[%clk 0:00:19.6]} 30... Ke7
{[%clk 0:02:19.9]} 31. Qd1 {[%clk 0:00:18.1]} 31... Kf6 {[%clk 0:02:11.8]} 32.
Ba2 {[%clk 0:00:17.3]} 32... b5 {[%clk 0:02:05.4]} 33. b4 {[%clk 0:00:17.2]}
33... a4 {[%clk 0:02:03.9]} 34. Re2 {[%clk 0:00:17.3]} 34... Qd6 {[%clk
0:00:47.4]} 35. Rxe6+ {[%clk 0:00:16.1]} 35... Qxe6 {[%clk 0:00:47.7]} 36. Bxe6
{[%clk 0:00:15.9]} 36... Kxe6 {[%clk 0:00:48.4]} 37. Qe2+ {[%clk 0:00:16.2]}
37... Kf6 {[%clk 0:00:44.1]} 38. Qxb5 {[%clk 0:00:16.7]} 38... Rd6 {[%clk
0:00:37.1]} 39. Qxa4 {[%clk 0:00:14.9]} 39... Kg5 {[%clk 0:00:35.7]} 40. f4+
{[%clk 0:00:12.2]} 40... Kxh5 {[%clk 0:00:35.1]} 41. Qe8+ {[%clk 0:00:11.3]}
41... g6 {[%clk 0:00:34]} 42. Qe2# {[%clk 0:00:08.7]} 1-0

[Event "*** SCC Grand Prix: Titled Tuesday Blitz"]
[Site "Chess.com"]
[Date "2020.10.06"]
[Round "7"]
[White "SanchezKelvin"]
[Black "ChessicallyInclined"]
[Result "1-0"]
[WhiteElo "2397"]
[BlackElo "2516"]
[TimeControl "180+1"]
[EndTime "11:19:20 PDT"]
[Termination "SanchezKelvin won by resignation"]

1. d4 {[%clk 0:03:00.9]} 1... Nf6 {[%clk 0:02:58]} 2. c4 {[%clk 0:03:00.7]} 2...
e6 {[%clk 0:02:57.8]} 3. Nf3 {[%clk 0:02:59.9]} 3... b6 {[%clk 0:02:46.2]} 4. g3
{[%clk 0:02:54.6]} 4... Ba6 {[%clk 0:02:45.7]} 5. Qc2 {[%clk 0:02:50.5]} 5... d5
{[%clk 0:02:43.6]} 6. Ne5 {[%clk 0:02:42.4]} 6... Bd6 {[%clk 0:02:37.1]} 7. cxd5
{[%clk 0:02:29.5]} 7... exd5 {[%clk 0:02:38]} 8. Nc6 {[%clk 0:02:10.7]} 8... Qd7
{[%clk 0:02:34.9]} 9. Ne5 {[%clk 0:01:56.7]} 9... Qe6 {[%clk 0:02:27.6]} 10. Bg2
{[%clk 0:01:39.8]} 10... O-O {[%clk 0:02:22.7]} 11. O-O {[%clk 0:01:34.4]} 11...
c5 {[%clk 0:02:21.6]} 12. Re1 {[%clk 0:01:26.3]} 12... cxd4 {[%clk 0:02:12.7]}
13. Nf3 {[%clk 0:01:26]} 13... Bc5 {[%clk 0:02:04.9]} 14. a3 {[%clk 0:01:21.2]}
14... Ne4 {[%clk 0:01:52.9]} 15. b4 {[%clk 0:01:08.6]} 15... d3 {[%clk
0:01:51.8]} 16. exd3 {[%clk 0:01:07.3]} 16... Bxf2+ {[%clk 0:01:50.8]} 17. Qxf2
{[%clk 0:01:04.3]} 17... Nxf2 {[%clk 0:01:51.7]} 18. Rxe6 {[%clk 0:01:03.9]}
18... fxe6 {[%clk 0:01:41.6]} 19. Kxf2 {[%clk 0:01:03.3]} 19... Bxd3 {[%clk
0:01:41.8]} 20. Kg1 {[%clk 0:00:44.6]} 20... Nd7 {[%clk 0:01:39]} 21. Bb2 {[%clk
0:00:42.8]} 21... Rac8 {[%clk 0:01:38.1]} 22. Nc3 {[%clk 0:00:41.3]} 22... Nf6
{[%clk 0:01:34.8]} 23. Re1 {[%clk 0:00:35.8]} 23... Ne4 {[%clk 0:01:34.5]} 24.
Nxe4 {[%clk 0:00:34.6]} 24... Bxe4 {[%clk 0:01:35.4]} 25. Nd4 {[%clk 0:00:34.4]}
25... e5 {[%clk 0:01:31.1]} 26. Bxe4 {[%clk 0:00:29]} 26... dxe4 {[%clk
0:01:32]} 27. Ne6 {[%clk 0:00:22.9]} 27... Rf6 {[%clk 0:01:30]} 28. Ng5 {[%clk
0:00:22]} 28... Rc2 {[%clk 0:01:26]} 29. Bxe5 {[%clk 0:00:18.3]} 29... Rf5
{[%clk 0:01:25.3]} 30. Bf4 {[%clk 0:00:17.5]} 30... Rc3 {[%clk 0:01:14.1]} 31.
Nxe4 {[%clk 0:00:16.8]} 31... Rxa3 {[%clk 0:01:11.1]} 32. Nd6 {[%clk 0:00:16.6]}
32... Rf8 {[%clk 0:01:10.5]} 33. h4 {[%clk 0:00:16.1]} 33... a5 {[%clk
0:01:08.2]} 34. b5 {[%clk 0:00:15.8]} 34... Rb3 {[%clk 0:01:06]} 35. Re7 {[%clk
0:00:14.9]} 35... a4 {[%clk 0:00:55.3]} 36. Be5 {[%clk 0:00:14.7]} 36... Rb1+
{[%clk 0:00:52.2]} 37. Kg2 {[%clk 0:00:14.7]} 37... Rff1 {[%clk 0:00:51]} 38.
Rxg7+ {[%clk 0:00:13.9]} 38... Kf8 {[%clk 0:00:51.3]} 39. Rxh7 {[%clk
0:00:12.7]} 39... a3 {[%clk 0:00:50.7]} 40. Ra7 {[%clk 0:00:08.6]} 40... Rfe1
{[%clk 0:00:48.4]} 41. Bf6 {[%clk 0:00:07.5]} 41... Rb2+ {[%clk 0:00:44.9]} 42.
Kh3 {[%clk 0:00:06.3]} 42... Rh1+ {[%clk 0:00:38.7]} 43. Kg4 {[%clk 0:00:05.7]}
43... Rb4+ {[%clk 0:00:38.7]} 44. Kh5 {[%clk 0:00:05.6]} 1-0

[Event "*** SCC Grand Prix: Titled Tuesday Blitz"]
[Site "Chess.com"]
[Date "2020.10.06"]
[Round "7"]
[White "SamuelGhimpu2003"]
[Black "Witik"]
[Result "0-1"]
[WhiteElo "2521"]
[BlackElo "2706"]
[TimeControl "180+1"]
[EndTime "11:19:21 PDT"]
[Termination "Witik won by resignation"]

1. d4 {[%clk 0:03:00.9]} 1... d5 {[%clk 0:02:58.9]} 2. Nc3 {[%clk 0:03:00.7]}
2... Nf6 {[%clk 0:02:58.7]} 3. Bf4 {[%clk 0:03:00.3]} 3... g6 {[%clk 0:02:57.8]}
4. e3 {[%clk 0:02:58]} 4... Bg7 {[%clk 0:02:57.7]} 5. h4 {[%clk 0:02:58.5]} 5...
h5 {[%clk 0:02:56.8]} 6. Nf3 {[%clk 0:02:58.8]} 6... O-O {[%clk 0:02:54.3]} 7.
Ne5 {[%clk 0:02:58.4]} 7... c5 {[%clk 0:02:51.7]} 8. Qf3 {[%clk 0:02:49.6]} 8...
cxd4 {[%clk 0:02:49.9]} 9. exd4 {[%clk 0:02:50.5]} 9... Nc6 {[%clk 0:02:49.7]}
10. O-O-O {[%clk 0:02:40.3]} 10... Bf5 {[%clk 0:02:47.3]} 11. Qe3 {[%clk
0:01:54]} 11... Rc8 {[%clk 0:02:38.4]} 12. Kb1 {[%clk 0:01:45.9]} 12... Nb4
{[%clk 0:02:24.7]} 13. Rc1 {[%clk 0:01:38]} 13... Qa5 {[%clk 0:02:20.8]} 14. a3
{[%clk 0:01:37.9]} 14... Nxc2 {[%clk 0:01:34.5]} 15. Rxc2 {[%clk 0:01:36.6]}
15... Bxc2+ {[%clk 0:01:32.9]} 16. Kxc2 {[%clk 0:01:36.7]} 16... Ne4 {[%clk
0:01:33.5]} 17. Kb3 {[%clk 0:01:14.4]} 17... Rxc3+ {[%clk 0:00:49.1]} 18. bxc3
{[%clk 0:01:15.3]} 18... Rc8 {[%clk 0:00:48.4]} 19. c4 {[%clk 0:01:07.7]} 19...
Bxe5 {[%clk 0:00:46.9]} 20. dxe5 {[%clk 0:00:51.2]} 20... Rc6 {[%clk 0:00:37.7]}
21. Rh3 {[%clk 0:00:13.4]} 21... Rb6+ {[%clk 0:00:31]} 22. Ka2 {[%clk
0:00:13.7]} 22... Qa4 {[%clk 0:00:20.8]} 23. Qd3 {[%clk 0:00:10.6]} 23... Nxf2
{[%clk 0:00:17.9]} 24. Qc3 {[%clk 0:00:05.4]} 24... Qd1 {[%clk 0:00:13.9]} 25.
Bd3 {[%clk 0:00:04.6]} 25... Nxh3 {[%clk 0:00:08.2]} 26. gxh3 {[%clk 0:00:05.5]}
26... dxc4 {[%clk 0:00:07.3]} 27. Qxc4 {[%clk 0:00:06.4]} 27... Rc6 {[%clk
0:00:05.4]} 28. Qe4 {[%clk 0:00:05]} 28... Rb6 {[%clk 0:00:04.1]} 29. e6 {[%clk
0:00:04.1]} 29... Qb3+ {[%clk 0:00:03.4]} 0-1

[Event "*** SCC Grand Prix: Titled Tuesday Blitz"]
[Site "Chess.com"]
[Date "2020.10.06"]
[Round "7"]
[White "Nikolaj_6"]
[Black "Xeniya2005"]
[Result "1-0"]
[WhiteElo "2541"]
[BlackElo "2386"]
[TimeControl "180+1"]
[EndTime "11:19:21 PDT"]
[Termination "Nikolaj_6 won on time"]

1. d4 {[%clk 0:03:00.9]} 1... Nf6 {[%clk 0:02:59.3]} 2. Bf4 {[%clk 0:03:00.1]}
2... d5 {[%clk 0:02:58.9]} 3. e3 {[%clk 0:02:58.7]} 3... c5 {[%clk 0:02:59.1]}
4. c3 {[%clk 0:02:57]} 4... Nc6 {[%clk 0:02:58.9]} 5. Nd2 {[%clk 0:02:57]} 5...
Qb6 {[%clk 0:02:57]} 6. Qb3 {[%clk 0:02:53]} 6... c4 {[%clk 0:02:55.4]} 7. Qc2
{[%clk 0:02:52.9]} 7... g6 {[%clk 0:02:53.2]} 8. Ngf3 {[%clk 0:02:47.7]} 8...
Bf5 {[%clk 0:02:51.9]} 9. Qc1 {[%clk 0:02:47.9]} 9... Bg7 {[%clk 0:02:44]} 10.
Be2 {[%clk 0:02:40.4]} 10... h6 {[%clk 0:02:33.3]} 11. b3 {[%clk 0:02:37.5]}
11... cxb3 {[%clk 0:02:23.6]} 12. axb3 {[%clk 0:02:38.4]} 12... O-O {[%clk
0:02:21.7]} 13. O-O {[%clk 0:02:37.6]} 13... Rac8 {[%clk 0:02:17.1]} 14. Qa3
{[%clk 0:02:35]} 14... a6 {[%clk 0:02:10.5]} 15. Rfc1 {[%clk 0:02:31.9]} 15...
Qd8 {[%clk 0:02:02.6]} 16. c4 {[%clk 0:02:28.7]} 16... e6 {[%clk 0:01:43.8]} 17.
h3 {[%clk 0:02:27.4]} 17... Ne4 {[%clk 0:01:37.6]} 18. Nxe4 {[%clk 0:02:25.5]}
18... dxe4 {[%clk 0:01:29.9]} 19. Ne5 {[%clk 0:02:04]} 19... Nxe5 {[%clk
0:01:21.2]} 20. dxe5 {[%clk 0:01:55.1]} 20... g5 {[%clk 0:01:20]} 21. Rd1 {[%clk
0:01:50.9]} 21... Qc7 {[%clk 0:01:18.3]} 22. Bg3 {[%clk 0:01:50]} 22... Bxe5
{[%clk 0:01:13.9]} 23. Bxe5 {[%clk 0:01:48.5]} 23... Qxe5 {[%clk 0:01:13.1]} 24.
Rd6 {[%clk 0:01:45.2]} 24... Rc7 {[%clk 0:01:04.9]} 25. Rad1 {[%clk 0:01:44.9]}
25... Qf6 {[%clk 0:00:49.7]} 26. Qa5 {[%clk 0:01:37.8]} 26... Qe7 {[%clk
0:00:37.7]} 27. Qe5 {[%clk 0:01:29.3]} 27... f6 {[%clk 0:00:19.4]} 28. Qd4
{[%clk 0:01:28.2]} 28... Kg7 {[%clk 0:00:19]} 29. Bg4 {[%clk 0:01:24.5]} 29...
Bxg4 {[%clk 0:00:17.5]} 30. hxg4 {[%clk 0:01:25.4]} 30... Qf7 {[%clk 0:00:13.1]}
31. Qxe4 {[%clk 0:01:24.4]} 31... Re8 {[%clk 0:00:11.6]} 32. Qd4 {[%clk
0:01:18.6]} 32... Ree7 {[%clk 0:00:11.5]} 33. c5 {[%clk 0:01:18]} 33... h5
{[%clk 0:00:10.9]} 34. b4 {[%clk 0:01:09.8]} 34... hxg4 {[%clk 0:00:10.2]} 35.
Qxg4 {[%clk 0:01:09.8]} 35... a5 {[%clk 0:00:09]} 36. f4 {[%clk 0:01:03.8]}
36... axb4 {[%clk 0:00:07]} 37. fxg5 {[%clk 0:01:03.5]} 37... f5 {[%clk
0:00:07.2]} 38. Qh4 {[%clk 0:00:59.2]} 38... Qg6 {[%clk 0:00:06.4]} 39. Qxb4
{[%clk 0:00:52.6]} 39... Qxg5 {[%clk 0:00:05.9]} 40. Qd4+ {[%clk 0:00:52.5]}
40... e5 {[%clk 0:00:05.5]} 41. Qc3 {[%clk 0:00:50]} 41... b5 {[%clk 0:00:03.2]}
42. c6 {[%clk 0:00:47.8]} 42... Rf7 {[%clk 0:00:03]} 43. Qxe5+ {[%clk
0:00:45.6]} 43... Kh7 {[%clk 0:00:03.2]} 44. Kf2 {[%clk 0:00:42.2]} 1-0